fUSD/lending_fUSD_20250811
["ID","MTS","AMOUNT","RATE_DAILY","PERIOD"]
[378636299,1754934658418,-161.102259,0.00016986,2]
[378636300,1754934658427,-161.102259,0.00016986,2]
[378636301,1754934658437,-161.102259,0.00016986,2]
[378636302,1754934658447,-400.0,0.00016986,2]
[378636303,1754934658455,-400.0,0.00016986,2]
[378636304,1754934658465,-400.0,0.00016986,2]
[378636305,1754934658474,-400.0,0.00016986,2]
[378636306,1754934658483,-151.0,0.00016986,2]
[378636307,1754934658492,-151.0,0.00016986,2]
[378636308,1754934658502,-400.0,0.00016986,2]
[378636309,1754934658511,-151.0,0.00016986,2]
[378636310,1754934658521,-400.0,0.00016986,2]
[378636311,1754934658530,-400.0,0.00016986,2]
[378636312,1754934658539,-249.078247,0.00016986,2]
[378636313,1754934658548,-249.078247,0.00016986,2]
[378636314,1754934658557,-400.0,0.00016986,2]
[378636315,1754934658566,-249.078247,0.00016986,2]
[378636316,1754934658576,-249.078247,0.00016986,2]
[378636317,1754934658585,-249.078247,0.00016986,2]
[378636318,1754934658594,-249.078247,0.00016986,2]
[378636319,1754934658603,-400.0,0.00016986,2]
[378636320,1754934658612,-151.0,0.00016986,2]
[378636321,1754934658621,-151.0,0.00016986,2]
[378636322,1754934658630,-400.0,0.00016986,2]
[378636323,1754934658639,-400.0,0.00016986,2]
[378636324,1754934658648,-400.0,0.00016986,2]
[378636325,1754934658657,-243.180883,0.00016986,2]
[378636326,1754934658666,-243.180883,0.00016986,2]
[378636327,1754934658675,-243.180883,0.00016986,2]
[378636328,1754934658684,-243.180883,0.00016986,2]
[378636329,1754934658693,-269.550016,0.00016986,2]
[378636330,1754934658702,-269.550016,0.00016986,2]
[378636331,1754934658712,-269.550016,0.00016986,2]
[378636332,1754934658721,-269.550016,0.00016986,2]
[378636333,1754934658731,-610.44,0.00016986,2]
[378636334,1754934658740,-400.0,0.00016986,2]
[378636335,1754934658749,-596.14,0.00016986,2]
[378636336,1754934658758,-908.2,0.00016986,2]
[378636337,1754934659026,-548.05,0.00016986,2]
[378636338,1754934659083,-400.0,0.00016986,2]
[378636339,1754934659094,-874.46,0.00016986,2]
[378636340,1754934659103,-537.61,0.00016986,2]
[378636341,1754934659113,-400.0,0.00016986,2]
[378636342,1754934659122,-400.0,0.00016986,2]
[378636343,1754934659131,-446.87,0.00016986,2]
[378636344,1754934659140,-578.8,0.00016986,2]
[378636345,1754934659150,-407.41,0.00016986,2]
[378636346,1754934659159,-400.0,0.00016986,2]
[378636347,1754934659169,-400.0,0.00016986,2]
[378636348,1754934659178,-400.0,0.00016986,2]
[378636349,1754934659187,-976.18,0.00016986,2]
[378636350,1754934659196,-650.49,0.00016986,2]
[378636351,1754934659206,-400.0,0.00016986,2]
[378636352,1754934659215,-400.0,0.00016986,2]
[378636353,1754934659225,-835.89,0.00016986,2]
[378636354,1754934659234,-453.52,0.00016986,2]
[378636355,1754934659245,-400.0,0.00016986,2]
[378636356,1754934659254,-430.84,0.00016986,2]
[378636357,1754934659264,-400.0,0.00016986,2]
[378636358,1754934659273,-320.35217683,0.00016986,2]
[378636359,1754934659282,-400.0,0.00016986,2]
[378636360,1754934659291,-400.0,0.00016986,2]
[378636361,1754934659301,-400.0,0.00016986,2]
[378636362,1754934659310,-400.0,0.00016986,2]
[378636363,1754934659319,-400.0,0.00016986,2]
[378636364,1754934659329,-408.62,0.00016986,2]
[378636365,1754934659338,-570.98,0.00016986,2]
[378636366,1754934659347,-800.1,0.00016986,2]
[378636367,1754934659357,-479.76,0.00016986,2]
[378636368,1754934659367,-422.4,0.00016986,2]
[378636369,1754934659376,-400.0,0.00016986,2]
[378636370,1754934659385,-919.09,0.00016986,2]
[378636371,1754934659396,-400.0,0.00016986,2]
[378636372,1754934659405,-400.0,0.00016986,2]
[378636373,1754934659415,-495.97,0.00016986,2]
[378636374,1754934659424,-400.0,0.00016986,2]
[378636375,1754934659433,-400.0,0.00016986,2]
[378636376,1754934659442,-206.595466,0.00016986,2]
[378636377,1754934659451,-206.595466,0.00016986,2]
[378636378,1754934659460,-206.595466,0.00016986,2]
[378636379,1754934659470,-206.595468,0.00016986,2]
[378636380,1754934659479,-478.63,0.00016986,2]
[378636381,1754934659489,-400.0,0.00016986,2]
[378636382,1754934659499,-400.0,0.00016986,2]
[378636383,1754934659508,-555.02,0.00016986,2]
[378636384,1754934659517,-716.63,0.00016986,2]
[378636385,1754934659527,-557.81,0.00016986,2]
[378636386,1754934659536,-400.0,0.00016986,2]
[378636387,1754934659546,-400.0,0.00016986,2]
[378636388,1754934659555,-447.93,0.00016986,2]
[378636389,1754934659565,-400.0,0.00016986,2]
[378636390,1754934659575,-400.0,0.00016986,2]
[378636391,1754934659584,-1166.96,0.00016986,2]
[378636392,1754934659593,-400.0,0.00016986,2]
[378636393,1754934659603,-769.89,0.00016986,2]
[378636394,1754934659612,-848.64,0.00016986,2]
[378636395,1754934659622,-400.0,0.00016986,2]
[378636396,1754934659631,-400.0,0.00016986,2]
[378636397,1754934659641,-914.0,0.00016986,2]
[378636398,1754934659650,-400.0,0.00016986,2]
[378636399,1754934659660,-400.0,0.00016986,2]
[378636400,1754934659669,-400.0,0.00016986,2]
[378636401,1754934659680,-400.0,0.00016986,2]
[378636402,1754934659689,-895.19,0.00016986,2]
[378636403,1754934659699,-1380.07,0.00016986,2]
[378636404,1754934659708,-273.66853714,0.00016986,2]
[378636405,1754934659717,-1344.45,0.00016986,2]
[378636406,1754934659727,-1000.94,0.00016986,2]
[378636407,1754934659736,-400.0,0.00016986,2]
[378636408,1754934659745,-400.0,0.00016986,2]
[378636409,1754934659754,-400.0,0.00016986,2]
[378636410,1754934659764,-400.0,0.00016986,2]
[378636411,1754934659776,-400.0,0.00016986,2]
[378636412,1754934659786,-400.0,0.00016986,2]
[378636413,1754934659796,-400.0,0.00016986,2]
[378636414,1754934659805,-492.35,0.00016986,2]
[378636415,1754934659815,-400.0,0.00016986,2]
[378636416,1754934659824,-456.04,0.00016986,2]
[378636417,1754934659834,-475.09,0.00016986,2]
[378636418,1754934659843,-400.0,0.00016986,2]
[378636419,1754934659853,-400.0,0.00016986,2]
[378636420,1754934659864,-1019.63,0.00016986,2]
[378636421,1754934659873,-506.42,0.00016986,2]
[378636422,1754934659882,-400.0,0.00016986,2]
[378636423,1754934659891,-937.69,0.00016986,2]
[378636424,1754934659901,-549.42,0.00016986,2]
[378636425,1754934659910,-400.0,0.00016986,2]
[378636426,1754934659919,-1049.64,0.00016986,2]
[378636427,1754934659929,-1028.95,0.00016986,2]
[378636428,1754934659938,-400.0,0.00016986,2]
[378636429,1754934659948,-400.0,0.00016986,2]
[378636430,1754934659958,-400.0,0.00016986,2]
[378636431,1754934659967,-400.0,0.00016986,2]
[378636432,1754934659977,-457.77,0.00016986,2]
[378636433,1754934659986,-1015.43,0.00016986,2]
[378636434,1754934659996,-406.15,0.00016986,2]
[378636435,1754934660006,-400.0,0.00016986,2]
[378636436,1754934660016,-1591.23,0.00016986,2]
[378636437,1754934660026,-400.0,0.00016986,2]
[378636438,1754934660036,-1038.1,0.00016986,2]
[378636439,1754934660048,-400.0,0.00016986,2]
[378636440,1754934660059,-400.0,0.00016986,2]
[378636441,1754934660070,-787.7,0.00016986,2]
[378636442,1754934660081,-542.81,0.00016986,2]
[378636443,1754934660090,-400.0,0.00016986,2]
[378636444,1754934660100,-400.0,0.00016986,2]
[378636445,1754934660110,-400.0,0.00016986,2]
[378636446,1754934660119,-400.0,0.00016986,2]
[378636447,1754934660130,-505.26,0.00016986,2]
[378636448,1754934660139,-1323.26,0.00016986,2]
[378636449,1754934660148,-483.11,0.00016986,2]
[378636450,1754934660159,-400.0,0.00016986,2]
[378636451,1754934660168,-1293.24,0.00016986,2]
[378636452,1754934660178,-400.0,0.00016986,2]
[378636453,1754934660188,-400.0,0.00016986,2]
[378636454,1754934660198,-1068.57,0.00016986,2]
[378636455,1754934660208,-400.0,0.00016986,2]
[378636456,1754934660218,-400.0,0.00016986,2]
[378636457,1754934660228,-400.0,0.00016986,2]
[378636458,1754934660238,-400.0,0.00016986,2]
[378636459,1754934660247,-1041.68,0.00016986,2]
[378636460,1754934660257,-451.55,0.00016986,2]
[378636461,1754934660266,-437.62,0.00016986,2]
[378636462,1754934660275,-771.32,0.00016986,2]
[378636463,1754934660285,-1401.1,0.00016986,2]
[378636464,1754934660294,-400.0,0.00016986,2]
[378636465,1754934660306,-531.66,0.00016986,2]
[378636466,1754934660315,-960.89,0.00016986,2]
[378636467,1754934660325,-636.2,0.00016986,2]
[378636468,1754934660334,-400.0,0.00016986,2]
[378636469,1754934660344,-400.0,0.00016986,2]
[378636470,1754934660354,-400.0,0.00016986,2]
[378636471,1754934660363,-400.0,0.00016986,2]
[378636472,1754934660372,-400.0,0.00016986,2]
[378636473,1754934660382,-2540.6,0.00016986,2]
[378636474,1754934660393,-400.0,0.00016986,2]
[378636475,1754934660402,-863.97,0.00016986,2]
[378636476,1754934660412,-400.0,0.00016986,2]
[378636477,1754934660421,-669.41,0.00016986,2]
[378636478,1754934660431,-400.0,0.00016986,2]
[378636479,1754934660441,-510.12,0.00016986,2]
[378636480,1754934660450,-417.22,0.00016986,2]
[378636481,1754934660460,-400.0,0.00016986,2]
[378636482,1754934660469,-412.68,0.00016986,2]
[378636483,1754934660479,-400.0,0.00016986,2]
[378636484,1754934660489,-400.0,0.00016986,2]
[378636485,1754934660499,-400.0,0.00016986,2]
[378636486,1754934660509,-400.0,0.00016986,2]
[378636487,1754934660518,-400.0,0.00016986,2]
[378636488,1754934660528,-523.94,0.00016986,2]
[378636489,1754934660538,-641.85,0.00016986,2]
[378636490,1754934660548,-400.0,0.00016986,2]
[378636491,1754934660558,-221.67,0.00016986,2]
[378636492,1754934660567,-440.6,0.00016986,2]
[378636493,1754934660576,-400.0,0.00016986,2]
[378636494,1754934660586,-660.46,0.00016986,2]
[378636495,1754934660595,-500.14,0.00016986,2]
[378636496,1754934660605,-400.0,0.00016986,2]
[378636497,1754934660615,-400.0,0.00016986,2]
[378636498,1754934660624,-400.0,0.00016986,2]
[378636499,1754934660634,-1097.76,0.00016986,2]
[378636500,1754934660643,-617.99,0.00016986,2]
[378636501,1754934660654,-582.44,0.00016986,2]
[378636502,1754934660664,-497.77,0.00016986,2]
[378636503,1754934660674,-400.0,0.00016986,2]
[378636504,1754934660683,-400.0,0.00016986,2]
[378636505,1754934660693,-542.43,0.00016986,2]
[378636506,1754934660702,-400.0,0.00016986,2]
[378636507,1754934660711,-573.1,0.00016986,2]
[378636508,1754934660721,-400.0,0.00016986,2]
[378636509,1754934660730,-400.0,0.00016986,2]
[378636510,1754934660740,-400.0,0.00016986,2]
[378636511,1754934660749,-400.0,0.00016986,2]
[378636512,1754934660758,-1149.26,0.00016986,2]
[378636513,1754934660768,-726.1,0.00016986,2]
[378636514,1754934660781,-4312.58,0.00016986,2]
[378636515,1754934660790,-400.0,0.00016986,2]
[378636516,1754934660802,-400.0,0.00016986,2]
[378636517,1754934660812,-400.0,0.00016986,2]
[378636518,1754934660823,-400.0,0.00016986,2]
[378636519,1754934660832,-400.0,0.00016986,2]
[378636520,1754934660842,-407.1,0.00016986,2]
[378636521,1754934660852,-1515.3,0.00016986,2]
[378636522,1754934660862,-400.0,0.00016986,2]
[378636523,1754934660871,-403.01,0.00016986,2]
[378636524,1754934660881,-400.89,0.00016986,2]
[378636525,1754934660891,-479.4,0.00016986,2]
[378636526,1754934660901,-422.61,0.00016986,2]
[378636527,1754934660910,-400.0,0.00016986,2]
[378636528,1754934660920,-535.34,0.00016986,2]
[378636529,1754934660929,-400.0,0.00016986,2]
[378636530,1754934660939,-400.0,0.00016986,2]
[378636531,1754934660948,-400.0,0.00016986,2]
[378636532,1754934660958,-754.66,0.00016986,2]
[378636533,1754934660968,-400.0,0.00016986,2]
[378636534,1754934660979,-400.0,0.00016986,2]
[378636535,1754934660988,-400.0,0.00016986,2]
[378636536,1754934660997,-400.0,0.00016986,2]
[378636537,1754934661007,-1621.91,0.00016986,2]
[378636538,1754934661016,-400.0,0.00016986,2]
[378636539,1754934661026,-400.0,0.00016986,2]
[378636540,1754934661036,-400.0,0.00016986,2]
[378636541,1754934661047,-400.0,0.00016986,2]
[378636542,1754934661057,-400.0,0.00016986,2]
[378636543,1754934661068,-400.0,0.00016986,2]
[378636544,1754934661078,-775.95,0.00016986,2]
[378636545,1754934661088,-400.0,0.00016986,2]
[378636546,1754934661097,-400.0,0.00016986,2]
[378636547,1754934661107,-400.0,0.00016986,2]
[378636548,1754934661116,-506.27,0.00016986,2]
[378636549,1754934661126,-456.77,0.00016986,2]
[378636550,1754934661135,-686.69,0.00016986,2]
[378636551,1754934661146,-400.0,0.00016986,2]
[378636552,1754934661156,-629.73,0.00016986,2]
[378636553,1754934661165,-400.0,0.00016986,2]
[378636554,1754934661174,-400.0,0.00016986,2]
[378636555,1754934661185,-300.0,0.00016986,2]
[378636556,1754934661194,-400.0,0.00016986,2]
[378636557,1754934661204,-400.0,0.00016986,2]
[378636558,1754934661214,-750.77,0.00016986,2]
[378636559,1754934661224,-722.42,0.00016986,2]
[378636560,1754934661234,-1641.04,0.00016986,2]
[378636561,1754934661243,-400.0,0.00016986,2]
[378636562,1754934661253,-2818.96,0.00016986,2]
[378636563,1754934661262,-924.62,0.00016986,2]
[378636564,1754934661272,-400.81,0.00016986,2]
[378636565,1754934661281,-400.0,0.00016986,2]
[378636566,1754934661290,-629.59,0.00016986,2]
[378636567,1754934661301,-437.03,0.00016986,2]
[378636568,1754934661310,-668.75,0.00016986,2]
[378636569,1754934661319,-400.0,0.00016986,2]
[378636570,1754934661328,-662.08,0.00016986,2]
[378636571,1754934661337,-400.0,0.00016986,2]
[378636572,1754934661346,-400.0,0.00016986,2]
[378636573,1754934661355,-1002.21,0.00016986,2]
[378636574,1754934661364,-1101.38,0.00016986,2]
[378636575,1754934661373,-1420.77,0.00016986,2]
[378636576,1754934661389,-400.0,0.00016986,2]
[378636577,1754934661398,-400.0,0.00016986,2]
[378636578,1754934661407,-401.01,0.00016986,2]
[378636579,1754934661416,-400.0,0.00016986,2]
[378636580,1754934661426,-400.0,0.00016986,2]
[378636581,1754934661523,-435.5043,0.00016986,2]
[378636582,1754934661532,-435.504306,0.00016986,2]
[378636583,1754934661541,-525.41,0.00016986,2]
[378636584,1754934661552,-400.0,0.00016986,2]
[378636585,1754934661562,-447.78,0.00016986,2]
[378636586,1754934661572,-619.17,0.00016986,2]
[378636587,1754934661582,-400.0,0.00016986,2]
[378636588,1754934661592,-475.5,0.00016986,2]
[378636589,1754934661602,-665.57,0.00016986,2]
[378636590,1754934661612,-1547.52,0.00016986,2]
[378636591,1754934661622,-400.0,0.00016986,2]
[378636592,1754934661631,-587.65,0.00016986,2]
[378636593,1754934661640,-400.0,0.00016986,2]
[378636594,1754934661649,-499.43,0.00016986,2]
[378636595,1754934661658,-2611.13,0.00016986,2]
[378636596,1754934661668,-400.0,0.00016986,2]
[378636597,1754934661677,-400.0,0.00016986,2]
[378636598,1754934661686,-400.0,0.00016986,2]
[378636599,1754934661695,-652.07,0.00016986,2]
[378636600,1754934661704,-400.0,0.00016986,2]
[378636601,1754934661713,-400.0,0.00016986,2]
[378636602,1754934661723,-566.3,0.00016986,2]
[378636603,1754934661732,-400.0,0.00016986,2]
[378636604,1754934661741,-400.0,0.00016986,2]
[378636605,1754934661750,-405.61,0.00016986,2]
[378636606,1754934661759,-400.0,0.00016986,2]
[378636607,1754934661768,-400.0,0.00016986,2]
[378636608,1754934661783,-401.22,0.00016986,2]
[378636609,1754934661793,-400.0,0.00016986,2]
[378636610,1754934661808,-400.0,0.00016986,2]
[378636611,1754934661818,-1709.31,0.00016986,2]
[378636612,1754934661829,-400.0,0.00016986,2]
[378636613,1754934661838,-400.0,0.00016986,2]
[378636614,1754934661849,-580.5,0.00016986,2]
[378636615,1754934661858,-400.0,0.00016986,2]
[378636616,1754934661867,-525.15,0.00016986,2]
[378636617,1754934661878,-400.0,0.00016986,2]
[378636618,1754934661888,-400.0,0.00016986,2]
[378636619,1754934661898,-467.92,0.00016986,2]
[378636620,1754934661908,-400.0,0.00016986,2]
[378636621,1754934661918,-460.32,0.00016986,2]
[378636622,1754934661928,-400.0,0.00016986,2]
[378636623,1754934661937,-400.0,0.00016986,2]
[378636624,1754934661948,-400.0,0.00016986,2]
[378636625,1754934661961,-400.0,0.00016986,2]
[378636626,1754934661971,-400.0,0.00016986,2]
[378636627,1754934661982,-1336.04,0.00016986,2]
[378636628,1754934661994,-420.47,0.00016986,2]
[378636629,1754934662005,-400.0,0.00016986,2]
[378636630,1754934662015,-785.84,0.00016986,2]
[378636631,1754934662025,-416.27,0.00016986,2]
[378636632,1754934662036,-400.0,0.00016986,2]
[378636633,1754934662049,-1201.43,0.00016986,2]
[378636634,1754934662059,-400.0,0.00016986,2]
[378636635,1754934662069,-400.0,0.00016986,2]
[378636636,1754934662079,-400.0,0.00016986,2]
[378636637,1754934662089,-775.98,0.00016986,2]
[378636638,1754934662100,-400.0,0.00016986,2]
[378636639,1754934662112,-400.0,0.00016986,2]
[378636640,1754934662122,-400.0,0.00016986,2]
[378636641,1754934662132,-976.88,0.00016986,2]
[378636642,1754934662142,-400.0,0.00016986,2]
[378636643,1754934662152,-790.77,0.00016986,2]
[378636644,1754934662163,-400.0,0.00016986,2]
[378636645,1754934662174,-548.32,0.00016986,2]
[378636646,1754934662185,-408.92,0.00016986,2]
[378636647,1754934662195,-400.0,0.00016986,2]
[378636648,1754934662205,-400.0,0.00016986,2]
[378636649,1754934662215,-530.77,0.00016986,2]
[378636650,1754934662225,-403.39,0.00016986,2]
[378636651,1754934662235,-400.0,0.00016986,2]
[378636652,1754934662244,-400.0,0.00016986,2]
[378636653,1754934662255,-429.94,0.00016986,2]
[378636654,1754934662265,-400.0,0.00016986,2]
[378636655,1754934662275,-400.0,0.00016986,2]
[378636656,1754934662285,-443.92,0.00016986,2]
[378636657,1754934662297,-644.67,0.00016986,2]
[378636658,1754934662309,-4637.36,0.00016986,2]
[378636659,1754934662321,-447.51,0.00016986,2]
[378636660,1754934662332,-582.58,0.00016986,2]
[378636661,1754934662343,-418.7,0.00016986,2]
[378636662,1754934662354,-400.0,0.00016986,2]
[378636663,1754934662364,-400.0,0.00016986,2]
[378636664,1754934662375,-400.0,0.00016986,2]
[378636665,1754934662384,-400.0,0.00016986,2]
[378636666,1754934662394,-3232.98,0.00016986,2]
[378636667,1754934662404,-614.94,0.00016986,2]
[378636668,1754934662415,-695.91,0.00016986,2]
[378636669,1754934662425,-400.0,0.00016986,2]
[378636670,1754934662436,-508.05,0.00016986,2]
[378636671,1754934662447,-477.29,0.00016986,2]
[378636672,1754934662457,-400.0,0.00016986,2]
[378636673,1754934662467,-400.0,0.00016986,2]
[378636674,1754934662477,-515.05,0.00016986,2]
[378636675,1754934662487,-649.75,0.00016986,2]
[378636676,1754934662497,-975.42,0.00016986,2]
[378636677,1754934662507,-400.0,0.00016986,2]
[378636678,1754934662518,-467.56,0.00016986,2]
[378636679,1754934662528,-400.0,0.00016986,2]
[378636680,1754934662539,-680.3,0.00016986,2]
[378636681,1754934662550,-569.73,0.00016986,2]
[378636682,1754934662561,-400.0,0.00016986,2]
[378636683,1754934662571,-400.0,0.00016986,2]
[378636684,1754934662580,-400.0,0.00016986,2]
[378636685,1754934662590,-400.0,0.00016986,2]
[378636686,1754934662600,-588.66,0.00016986,2]
[378636687,1754934662610,-400.0,0.00016986,2]
[378636688,1754934662621,-400.0,0.00016986,2]
[378636689,1754934662632,-1392.1,0.00016986,2]
[378636690,1754934662642,-400.0,0.00016986,2]
[378636691,1754934662652,-904.0,0.00016986,2]
[378636692,1754934662670,-400.0,0.00016986,2]
[378636693,1754934662680,-401.36,0.00016986,2]
[378636694,1754934662701,-1033.72,0.00016986,2]
[378636695,1754934662711,-400.0,0.00016986,2]
[378636696,1754934662721,-400.0,0.00016986,2]
[378636697,1754934662732,-1367.58,0.00016986,2]
[378636698,1754934662742,-400.0,0.00016986,2]
[378636699,1754934662752,-797.91,0.00016986,2]
[378636700,1754934662762,-1122.2,0.00016986,2]
[378636701,1754934662772,-513.67,0.00016986,2]
[378636702,1754934662786,-1761.48,0.00016986,2]
[378636703,1754934662797,-694.16,0.00016986,2]
[378636704,1754934662807,-400.0,0.00016986,2]
[378636705,1754934662817,-629.39,0.00016986,2]
[378636706,1754934662827,-400.0,0.00016986,2]
[378636707,1754934662839,-400.0,0.00016986,2]
[378636708,1754934662850,-400.0,0.00016986,2]
[378636709,1754934662860,-498.66,0.00016986,2]
[378636710,1754934662870,-611.47,0.00016986,2]
[378636711,1754934662880,-731.91,0.00016986,2]
[378636712,1754934662890,-429.64,0.00016986,2]
[378636713,1754934662901,-400.0,0.00016986,2]
[378636714,1754934662911,-830.71,0.00016986,2]
[378636715,1754934662923,-400.0,0.00016986,2]
[378636716,1754934662933,-849.16,0.00016986,2]
[378636717,1754934662944,-400.0,0.00016986,2]
[378636718,1754934662957,-1435.2,0.00016986,2]
[378636719,1754934662967,-1042.65,0.00016986,2]
[378636720,1754934662977,-592.23,0.00016986,2]
[378636721,1754934662988,-614.47,0.00016986,2]
[378636722,1754934662999,-909.53,0.00016986,2]
[378636723,1754934663010,-914.27,0.00016986,2]
[378636724,1754934663021,-679.65,0.00016986,2]
[378636725,1754934663031,-660.74,0.00016986,2]
[378636726,1754934663041,-2371.86,0.00016986,2]
[378636727,1754934663053,-537.45,0.00016986,2]
[378636728,1754934663065,-1298.74,0.00016986,2]
[378636729,1754934663077,-408.58,0.00016986,2]
[378636730,1754934663088,-1848.0,0.00016986,2]
[378636731,1754934663098,-400.0,0.00016986,2]
[378636732,1754934663109,-1107.38,0.00016986,2]
[378636733,1754934663119,-2057.97,0.00016986,2]
[378636734,1754934663130,-400.0,0.00016986,2]
[378636735,1754934663142,-1367.26,0.00016986,2]
[378636736,1754934663153,-440.43,0.00016986,2]
[378636737,1754934663166,-400.0,0.00016986,2]
[378636738,1754934663177,-400.0,0.00016986,2]
[378636739,1754934663186,-400.0,0.00016986,2]
[378636740,1754934663205,-2103.58,0.00016986,2]
[378636741,1754934663217,-3095.57,0.00016986,2]
[378636742,1754934663229,-400.0,0.00016986,2]
[378636743,1754934663240,-400.0,0.00016986,2]
[378636744,1754934663252,-584.76,0.00016986,2]
[378636745,1754934663263,-565.31,0.00016986,2]
[378636746,1754934663275,-1941.83,0.00016986,2]
[378636747,1754934663285,-2330.86,0.00016986,2]
[378636748,1754934663297,-400.0,0.00016986,2]
[378636749,1754934663309,-400.0,0.00016986,2]
[378636750,1754934663320,-1432.66,0.00016986,2]
[378636751,1754934663331,-705.23,0.00016986,2]
[378636752,1754934663343,-400.0,0.00016986,2]
[378636753,1754934663357,-400.0,0.00016986,2]
[378636754,1754934663369,-400.0,0.00016986,2]
[378636755,1754934663380,-1072.86,0.00016986,2]
[378636756,1754934663391,-591.32,0.00016986,2]
[378636757,1754934663401,-446.19,0.00016986,2]
[378636758,1754934663411,-610.07,0.00016986,2]
[378636759,1754934663422,-400.0,0.00016986,2]
[378636760,1754934663432,-400.0,0.00016986,2]
[378636761,1754934663442,-782.61,0.00016986,2]
[378636762,1754934663453,-156.67100874,0.00016986,2]
[378636763,1754934663463,-630.96,0.00016986,2]
[378636764,1754934663474,-1768.93,0.00016986,2]
[378636765,1754934663484,-547.67,0.00016986,2]
[378636766,1754934663495,-400.0,0.00016986,2]
[378636767,1754934663507,-720.08,0.00016986,2]
[378636768,1754934663518,-873.84,0.00016986,2]
[378636769,1754934663529,-1000.63,0.00016986,2]
[378636770,1754934663539,-919.41,0.00016986,2]
[378636771,1754934663549,-400.0,0.00016986,2]
[378636772,1754934663559,-400.0,0.00016986,2]
[378636773,1754934663570,-400.0,0.00016986,2]
[378636774,1754934663581,-513.09,0.00016986,2]
[378636775,1754934663593,-1775.57,0.00016986,2]
[378636776,1754934663604,-553.8,0.00016986,2]
[378636777,1754934663615,-776.34,0.00016986,2]
[378636778,1754934663627,-400.0,0.00016986,2]
[378636779,1754934663637,-1998.7,0.00016986,2]
[378636780,1754934663648,-441.93,0.00016986,2]
[378636781,1754934663658,-400.0,0.00016986,2]
[378636782,1754934663669,-400.0,0.00016986,2]
[378636783,1754934663679,-400.0,0.00016986,2]
[378636784,1754934663690,-939.54,0.00016986,2]
[378636785,1754934663701,-1105.45,0.00016986,2]
[378636786,1754934663711,-747.13,0.00016986,2]
[378636787,1754934663722,-2618.81,0.00016986,2]
[378636788,1754934663732,-2304.46,0.00016986,2]
[378636789,1754934663742,-531.85441733,0.00016986,2]
[378636790,1754934663752,-400.0,0.00016986,2]
[378636791,1754934663763,-920.93,0.00016986,2]
[378636792,1754934663774,-400.59,0.00016986,2]
[378636793,1754934663787,-909.63,0.00016986,2]
[378636794,1754934663800,-465.77,0.00016986,2]
[378636795,1754934663810,-2612.83,0.00016986,2]
[378636796,1754934663821,-554.97,0.00016986,2]
[378636797,1754934663832,-579.24,0.00016986,2]
[378636798,1754934663843,-400.0,0.00016986,2]